bitfinex-derivatives/quotes_SOLF0:USTF0_20220106
["timestamp","ask_amount","ask_price","bid_price","bid_amount"]
[1641480503327,4.64721129,149.84,149.83,4.64721129]
[1641480503925,32.31200129,149.84,149.83,4.64721129]
[1641480504124,32.31200129,149.84,149.83,8.64721129]
[1641480504327,27.66479,149.84,149.83,4.0]
[1641480505527,27.66479,149.84,149.82,4.64721129]
[1641480506231,41.60510605,149.84,149.82,4.0]
[1641480506428,41.60510605,149.84,149.8,4.64721129]
[1641480506729,6.6728947,149.82,149.8,4.64721129]
[1641480507328,4.72146628,149.81,149.8,4.64721129]
[1641480508029,32.38625628,149.81,149.8,4.64721129]
[1641480508831,34.33790735,149.81,149.8,4.64721129]
[1641480509033,34.33790735,149.81,149.79,4.64721129]
[1641480509330,54.33790735,149.81,149.79,4.64721129]
[1641480509930,34.33924353,149.8,149.77,4.64721129]
[1641480510130,34.33924353,149.8,149.76,58.43971129]
[1641480510529,34.33924353,149.8,149.76,54.43971129]
[1641480510731,34.33924353,149.8,149.76,58.43971129]
[1641480510933,48.27955958,149.8,149.76,54.43971129]
[1641480511134,48.27955958,149.8,149.79,4.0]
[1641480511334,41.60510605,149.8,149.79,4.0]
[1641480511830,41.60510605,149.8,149.78,4.0]
[1641480511831,27.66479,149.8,149.78,4.0]
[1641480512031,27.66479,149.8,149.77,20.91276029]
[1641480512432,27.66479,149.8,149.78,4.0]
[1641480512832,27.66479,149.8,149.76,68.38002734]
[1641480513032,27.66479,149.8,149.78,4.0]
[1641480513732,27.66479,149.8,149.76,54.43971129]
[1641480514135,27.66479,149.8,149.78,4.0]
[1641480514337,27.66479,149.8,149.76,54.43971129]
[1641480514633,27.66479,149.8,149.77,4.0]
[1641480516037,27.66479,149.8,149.79,4.0]
[1641480516240,13.94031605,149.82,149.79,4.0]
[1641480516440,13.94031605,149.82,149.81,4.0]
[1641480516838,13.94031605,149.82,149.78,4.0]
[1641480517039,6.67334001,149.82,149.77,20.91198057]
[1641480517238,6.67334001,149.82,149.8,4.0]
[1641480517438,6.67334001,149.82,149.77,24.91198057]
[1641480517638,6.67400808,149.79,149.77,24.91198057]
[1641480518039,6.67400808,149.79,149.77,4.0]
[1641480518239,6.67400808,149.79,149.78,4.0]
[1641480518438,13.94031605,149.82,149.78,4.0]
[1641480518638,13.94031605,149.82,149.81,4.0]
[1641480519040,27.66479,149.83,149.81,4.0]
[1641480519240,27.66479,149.83,149.82,4.0]
[1641480519540,27.66479,149.83,149.82,8.0]
[1641480519739,13.94031605,149.84,149.82,8.0]
[1641480519939,13.94031605,149.84,149.76,68.38002734]
[1641480519940,13.94031605,149.84,149.83,4.0]
[1641480520141,13.94031605,149.85,149.83,8.0]
[1641480520440,13.94031605,149.85,149.84,4.0]
[1641480521139,13.94031605,149.87,149.84,4.0]
[1641480521340,13.94031605,149.87,149.86,4.0]
[1641480523041,13.94031605,149.88,149.86,4.0]
[1641480523442,13.94031605,149.88,149.87,4.0]
[1641480523842,1.605e-05,149.88,149.87,4.0]
[1641480524045,27.66480605,149.9,149.87,4.0]
[1641480524242,27.66480605,149.9,149.88,4.0]
[1641480524445,27.66480605,149.9,149.89,4.0]
[1641480524643,1.605e-05,149.9,149.89,4.0]
[1641480524843,1.605e-05,149.9,149.89,8.0]
[1641480525444,37.176408,149.94,149.89,8.0]
[1641480525645,37.176408,149.94,149.93,4.0]
[1641480526046,27.66479,149.96,149.93,4.0]
[1641480526247,27.66479,149.96,149.91,4.0]
[1641480526446,27.66479,149.96,149.95,4.0]
[1641480527047,27.66479,149.96,149.94,4.0]
[1641480527248,27.66479,149.96,149.93,4.0]
[1641480527449,37.61460478,149.96,149.93,4.0]
[1641480527648,30.94793811,149.96,149.89,4.0]
[1641480527849,30.94793811,149.96,149.85,11.38249736]
[1641480527850,6.66822259,149.94,149.92,4.0]
[1641480528048,27.66479,149.93,149.85,11.38249736]
[1641480528249,27.66479,149.93,149.92,4.0]
[1641480529551,30.94793811,149.93,149.92,4.0]
[1641480530052,3.28314811,149.93,149.92,4.0]
[1641480530954,4.811e-05,149.93,149.92,8.0]
[1641480531154,27.66479,149.96,149.92,8.0]
[1641480531155,4.811e-05,149.95,149.92,8.0]
[1641480531357,4.811e-05,149.95,149.94,8.0]
[1641480531555,4.811e-05,149.95,149.94,4.0]
[1641480535060,27.66479,149.98,149.94,4.0]
[1641480535261,27.66479,149.98,149.93,4.0]
[1641480535459,63.25650259,150.03,149.97,4.0]
[1641480535660,63.25650259,150.03,149.99,4.0]
[1641480536061,6.663335,150.03,149.94,4.0]
[1641480536262,27.66479,150.02,149.95,4.0]
[1641480536461,27.66479,150.02,150.01,4.0]
[1641480537961,31.66479,150.02,149.95,4.0]
[1641480538161,6.66444518,150.01,149.92,68.1498]
[1641480538360,10.66444518,150.01,149.92,4.0]
[1641480538560,6.66444518,150.01,149.92,4.0]
[1641480539561,6.66444518,150.01,149.93,4.0]
[1641480539864,6.66444518,150.01,149.94,4.0]
[1641480540164,27.66479,149.99,149.94,4.0]
[1641480540365,23.57692486,150.01,149.97,4.0]
[1641480540564,16.91247968,150.01,149.92,62.0033]
[1641480540763,6.66511147,149.99,149.92,62.0033]
[1641480541164,6.66511147,149.99,149.91,27.66479]
[1641480541165,4.0,149.97,149.91,20.11589348]
[1641480541363,10.66511147,149.99,149.91,20.11589348]
[1641480541963,4.0,149.96,149.91,20.11589348]
[1641480542165,27.66479,149.97,149.91,20.11589348]
[1641480542567,27.66479,149.97,149.89,4.0]
[1641480543068,4.0,149.96,149.88,31.66479]
[1641480543268,4.0,149.93,149.82,4.0]
[1641480543467,6.66844492,149.92,149.82,4.0]
[1641480543666,6.66844492,149.92,149.78,134.1259]
[1641480543667,6.66844492,149.92,149.83,4.0]
[1641480543867,6.66844492,149.92,149.82,4.0]
[1641480544067,6.66844492,149.92,149.86,4.0]
[1641480544268,6.66844492,149.92,149.87,27.66479]
[1641480545273,6.66844492,149.92,149.85,27.66479]
[1641480545568,6.66844492,149.92,149.85,31.66479]
[1641480546473,44.4286554,149.92,149.85,31.66479]
[1641480547474,56.32551827,149.92,149.85,31.66479]
[1641480547876,56.32551827,149.92,149.85,27.66479]
[1641480548673,6.66911201,149.9,149.85,27.66479]
[1641480549276,6.66911201,149.9,149.87,4.0]
[1641480549476,6.66911201,149.9,149.85,27.66479]
[1641480552081,4.0,149.89,149.85,27.66479]
[1641480552280,6.66911201,149.9,149.82,4.0]
[1641480552681,4.0,149.86,149.79,37.76021048]
[1641480553082,4.0,149.84,149.79,37.76021048]
[1641480553284,4.0,149.85,149.79,37.76021048]
[1641480553483,4.0,149.84,149.79,37.76021048]
[1641480553682,6.67222686,149.83,149.79,37.76021048]
[1641480553883,6.67222686,149.83,149.78,95.42049]
[1641480554084,6.67222686,149.83,149.78,67.7557]
[1641480554285,27.66479,149.81,149.78,67.7557]
[1641480554684,6.67423079,149.79,149.78,67.7557]
[1641480554884,6.67423079,149.79,149.78,58.7557]
[1641480555885,8.0,149.79,149.59,62.48214901]
[1641480556086,4.0,149.6,149.4,6.68382181]
[1641480556285,90.016754,149.56,149.55,81.34942402]
[1641480556484,90.016754,149.56,149.55,10.22942402]
[1641480556685,90.016754,149.56,149.49,134.1144504]
[1641480556889,4.0,149.5,149.49,133.2944504]
[1641480557086,4.0,149.5,149.39,118.19560456]
[1641480557286,4.0,149.47,149.39,118.19560456]
[1641480557487,4.0,149.44,149.39,116.85560456]
[1641480557687,4.0,149.46,149.39,116.85560456]
[1641480557988,4.0,149.49,149.38,20.52787889]
[1641480558186,38.58784009,149.5,149.3,6.92872518]
[1641480558486,4.0,149.47,149.35,27.66479]
[1641480558688,18.58784009,149.5,149.35,27.66479]
[1641480558889,11.89686287,149.5,149.36,6.68583272]
[1641480559091,6.68762121,149.49,149.35,27.66479]
[1641480559688,4.0,149.48,149.35,27.66479]
[1641480559889,6.68762121,149.49,149.35,27.66479]
[1641480560289,6.68762121,149.49,149.39,27.66479]
[1641480561789,6.69030575,149.43,149.35,27.66479]
[1641480562189,6.69030575,149.43,149.29,64.4358]
[1641480562389,38.35509575,149.43,149.32,27.66479]
[1641480562590,6.69142494,149.4,149.32,27.66479]
[1641480562991,27.66479,149.43,149.32,27.66479]
[1641480563191,20.0,149.55,149.32,27.66479]
[1641480563389,6.68806849,149.48,149.32,26.66479]
[1641480563590,28.88045324,149.42,149.32,26.66479]
[1641480564395,16.98359037,149.42,149.38,27.66479]
[1641480564595,6.68941066,149.45,149.33,6.92628187]
[1641480564793,6.69030575,149.43,149.33,6.92628187]
[1641480565196,4.0,149.42,149.33,6.92628187]
[1641480565495,6.69030575,149.43,149.32,26.66479]
[1641480565698,34.71163462,149.33,149.25,11.3427773]
[1641480565895,28.0,149.26,149.1,85.54150381]
[1641480566097,28.0,149.11,149.1,80.08150381]
[1641480566298,28.0,149.11,149.02,158.85956406]
[1641480566498,24.0,149.03,149.02,129.03956406]
[1641480566698,28.0,149.03,149.02,41.99754678]
[1641480566898,34.71433847,149.03,148.99,19.06935969]
[1641480567101,4.0,149.0,148.99,14.94935969]
[1641480567297,10.71163462,149.0,148.99,14.94935969]
[1641480567498,10.71163462,149.0,148.9,118.56116601]
[1641480567698,6.71478932,148.91,148.9,118.56116601]
[1641480567898,4.0,149.0,148.9,118.56116601]
[1641480568099,4.0,149.0,148.82,27.66479]
[1641480568300,27.66479,149.0,148.9,27.66479]
[1641480568900,6.71163462,148.96,148.79,6.71163462]
[1641480569100,6.71163462,148.96,148.8,20.0]
[1641480569301,6.71163462,148.96,148.79,6.71163462]
[1641480569499,6.71163462,148.96,148.79,26.71163462]
[1641480569700,6.71163462,148.96,148.79,6.71163462]
[1641480569901,6.71163462,148.96,148.81,20.0]
[1641480570102,6.71163462,148.96,148.79,6.71163462]
[1641480570301,6.71163462,148.96,148.93,27.66479]
[1641480570503,6.71298627,148.94,148.77,6.85728003]
[1641480570703,6.71501477,148.89,148.79,6.85728003]
[1641480570902,4.74967296,148.92,148.79,6.85728003]
[1641480571502,4.74967296,148.9,148.79,6.71185986]
[1641480572403,4.74967296,148.92,148.87,27.66479]
[1641480573206,4.0,149.04,148.87,47.66479]
[1641480573404,20.0,149.11,148.87,27.66479]
[1641480573604,20.0,149.09,148.87,27.66479]
[1641480573805,4.0,148.97,148.87,27.66479]
[1641480574005,20.0,149.02,148.87,27.66479]
[1641480574206,4.0,149.01,148.87,27.66479]
[1641480574406,27.66479,148.95,148.87,27.66479]
[1641480574605,31.66479,148.97,148.87,27.66479]
[1641480574807,27.66479,148.97,148.87,27.66479]
[1641480575009,4.0,148.96,148.87,27.66479]
[1641480575308,27.66479,148.97,148.87,27.66479]
[1641480575507,4.0,148.96,148.87,27.66479]
[1641480575708,27.66479,148.97,148.87,27.66479]
[1641480576207,31.66479,148.97,148.87,27.66479]
[1641480576408,4.0,148.96,148.87,27.66479]
[1641480576611,55.32958,148.97,148.84,27.66479]
[1641480577008,4.0,148.96,148.84,27.66479]
[1641480577210,4.0,148.89,148.78,6.71433847]
[1641480577409,6.71659334,148.9,148.78,6.71433847]
[1641480577609,55.32958,148.97,148.72,20.0]
[1641480577808,55.32958,148.97,148.82,6.71253566]
[1641480578411,55.32958,148.97,148.69,68.95]
[1641480578610,6.7136623,148.96,148.82,27.66479]
[1641480579011,4.0,148.95,148.82,27.66479]
[1641480579310,4.0,148.96,148.82,34.37732566]
[1641480579510,55.32958,148.97,148.82,34.37732566]
[1641480579710,4.0,148.96,148.82,34.37732566]
[1641480579909,59.32958,148.97,148.82,34.37732566]
[1641480580310,59.32958,148.97,148.83,1.38389103]
[1641480580512,33.80066687,148.95,148.87,27.66479]
[1641480580912,4.0,148.88,148.83,8.24138802]
[1641480581113,4.0,148.92,148.83,8.24138802]
[1641480581314,4.0,148.91,148.83,1.38389103]
[1641480581513,4.0,148.91,148.88,1.38389103]
[1641480581813,4.0,148.92,148.88,1.38389103]
[1641480582014,4.0,148.94,148.88,1.38389103]
[1641480582513,3.36679032,148.9,148.86,27.66479]
[1641480583514,49.3126856,148.96,148.87,1.38389103]
[1641480584315,15.51201873,148.96,148.87,8.2413068]
[1641480585517,19.51201873,148.96,148.87,8.2413068]
[1641480585718,15.51201873,148.96,148.87,8.2413068]
[1641480585918,4.0,148.91,148.87,8.2413068]
[1641480586318,4.0,148.89,148.87,14.25082569]
[1641480586518,6.71659334,148.9,148.87,14.25082569]
[1641480587119,14.25082569,148.94,148.87,14.25082569]
[1641480587317,3.36679032,148.89,148.83,14.25082569]
[1641480588318,14.25082569,148.92,148.85,14.25082569]
[1641480588718,14.25082569,148.92,148.85,41.91561569]
[1641480589218,14.25082569,148.93,148.86,14.25082569]
[1641480590119,17.61761601,148.93,148.86,22.49213249]
[1641480591122,14.25082569,148.92,148.86,1.38389103]
[1641480591921,4.0,148.91,148.87,14.25082569]
[1641480592522,17.61761601,148.93,148.87,14.25082569]
[1641480592721,27.66479,148.92,148.87,14.25082569]
[1641480592922,31.66479,148.92,148.87,14.25082569]
[1641480593122,3.36679032,148.9,148.84,14.25082569]
[1641480594521,3.36679032,148.91,148.85,14.25082569]
[1641480595523,3.36679032,148.91,148.84,14.25082569]
[1641480595822,148.4575435,149.17,149.13,1390.00938031]
[1641480596023,11.44200578,149.17,149.13,1390.00938031]
[1641480596222,138.15535762,149.23,149.13,1390.00938031]
[1641480596423,138.15535762,149.23,149.14,0.75922279]
[1641480596622,29.18883399,149.16,149.14,0.75922279]
[1641480596823,12.36883399,149.16,148.9,68.95]
[1641480597025,159.70401069,149.23,149.15,55.32958]
[1641480597223,39.12647405,149.23,149.15,55.32958]
[1641480597523,17.06665497,149.23,149.15,55.32958]
[1641480598123,17.06665497,149.23,149.16,0.758763]
[1641480598323,4.0,149.29,149.16,0.758763]
[1641480598524,4.0,149.3,149.16,0.758763]
[1641480598824,4.0,149.31,149.16,0.758763]
[1641480599026,4.0,149.22,149.21,27.66479]
[1641480599225,20.0,149.31,149.21,27.66479]
[1641480599425,4.0,149.23,149.21,28.423553]
[1641480599625,4.0,149.24,149.21,28.423553]
[1641480599825,4.0,149.25,149.21,28.423553]
[1641480600125,4.0,149.25,149.22,0.758763]
[1641480600328,4.0,149.24,149.22,0.758763]
[1641480600525,4.0,149.27,149.22,0.758763]
[1641480600725,4.0,149.3,149.22,0.758763]
[1641480600926,4.0,149.29,149.22,0.758763]
[1641480601126,4.0,149.23,149.2,27.66479]
[1641480601326,4.0,149.23,149.02,130.06]
[1641480601327,4.0,149.22,149.02,134.06]
[1641480601529,4.0,149.22,149.03,4.0]
[1641480601727,7.58922042,149.09,149.03,4.0]
[1641480602027,4.0,149.26,149.03,4.0]
[1641480602226,4.0,149.23,149.06,4.0]
[1641480602427,4.0,149.26,149.07,4.0]
[1641480602627,4.0,149.24,149.07,4.0]
[1641480603026,4.0,149.21,149.2,27.66479]
[1641480603228,4.0,149.25,149.2,27.66479]
[1641480603529,4.0,149.26,149.2,28.4236668]
[1641480603728,4.0,149.27,149.2,28.4236668]
[1641480603928,4.0,149.32,149.21,0.7588768]
[1641480604130,27.66479,149.34,149.21,0.7588768]
[1641480604329,27.66479,149.34,149.21,4.7588768]
[1641480604529,31.66479,149.34,149.21,0.7588768]
[1641480604730,31.66479,149.34,149.21,4.7588768]
[1641480605129,31.66479,149.34,149.27,27.66479]
[1641480605330,4.0,149.35,149.27,27.66479]
[1641480605530,94.81959555,149.35,149.27,27.66479]
[1641480605731,4.0,149.34,149.27,27.66479]
[1641480606031,94.81959555,149.35,149.27,27.66479]
[1641480606032,94.81959555,149.35,149.28,0.7588768]
[1641480606231,98.81959555,149.35,149.28,0.7588768]
[1641480606432,94.81959555,149.35,149.28,0.7588768]
[1641480606633,56.88974295,149.31,149.28,0.7588768]
[1641480607031,56.88974295,149.31,149.3,27.66479]
[1641480607833,56.88974295,149.31,149.3,28.4236668]
[1641480609241,56.88974295,149.33,149.3,28.4236668]
[1641480609841,56.88974295,149.33,149.31,0.7588768]
[1641480611044,50.88974295,149.33,149.31,0.7588768]
[1641480611244,43.88974295,149.39,149.32,27.66479]
[1641480611442,43.88974295,149.39,149.31,0.7588768]
[1641480612244,94.81959555,149.4,149.31,0.7588768]
[1641480613244,94.81959555,149.41,149.31,0.7588768]
[1641480614048,94.81959555,149.39,149.31,0.7588768]
[1641480614746,94.81959555,149.4,149.31,0.7588768]
[1641480615146,94.81959555,149.4,149.31,4.7588768]
[1641480615445,94.81959555,149.4,149.31,0.7588768]
[1641480615646,114.81959555,149.39,149.31,0.7588768]
[1641480616047,20.0,149.36,149.26,4.0]
[1641480616247,114.81959555,149.39,149.26,4.0]
[1641480616446,94.81959555,149.37,149.26,4.0]
[1641480617248,94.81959555,149.35,149.25,27.66479]
[1641480617448,94.81959555,149.35,149.27,0.75848822]
[1641480617647,20.0,149.3,149.16,6.94439733]
[1641480617847,94.81959555,149.35,149.12,37.92282721]
[1641480617848,20.0,149.22,149.12,37.92282721]
[1641480618248,20.0,149.25,149.12,37.92282721]
[1641480618648,37.92846884,149.26,149.12,37.92282721]
[1641480618849,37.92846884,149.15,149.13,0.75899142]
[1641480619249,65.59325884,149.15,149.11,0.75899142]
[1641480619647,65.59325884,149.15,149.09,4.0]
[1641480619849,27.66479,149.15,149.09,4.0]
[1641480620049,27.66479,149.15,149.1,0.75899142]
[1641480620851,12.01950095,149.14,149.1,0.75899142]
[1641480621251,12.01950095,149.14,149.05,0.75899142]
[1641480621650,37.92846884,149.12,149.06,4.0]
[1641480621851,37.92846884,149.12,149.04,4.75899142]
[1641480622051,37.92846884,149.12,149.11,4.0]
[1641480622453,37.92846884,149.12,149.09,4.0]
[1641480622651,37.92846884,149.12,149.11,0.75899142]
[1641480623052,37.92846884,149.12,149.08,0.75899142]
[1641480623251,27.66479,149.11,149.08,0.75899142]
[1641480623451,1.66479,149.11,149.06,0.75899142]
[1641480624052,1.66479,149.11,149.04,37.92282721]
[1641480624654,37.92846884,149.07,148.96,62.1343]
[1641480624854,37.92846884,149.07,148.94,37.92282721]
[1641480625254,27.66479,149.03,148.95,28.42435542]
[1641480625855,27.66479,149.03,148.96,0.75956542]
[1641480627358,14.24316104,148.99,148.96,0.75956542]
[1641480628460,14.24316104,149.02,148.96,0.75956542]
[1641480628670,14.24316104,149.02,148.99,4.0]
[1641480628860,14.24316104,149.02,148.98,4.0]
[1641480629060,14.24316104,149.02,148.99,4.0]
[1641480629262,14.24316104,149.02,149.0,4.0]
[1641480629660,14.24316104,149.02,149.01,0.75956542]
[1641480630261,37.92846884,149.05,149.0,0.75956542]
[1641480630262,14.24316104,149.05,149.0,0.75956542]
[1641480630460,14.24316104,149.05,149.04,4.0]
[1641480631059,12.03747019,149.07,149.04,4.75956542]
[1641480631060,14.24316104,149.06,149.04,4.75956542]
[1641480631463,14.24316104,149.06,148.99,14.24316104]
[1641480631863,14.24316104,149.05,148.98,14.24316104]
[1641480632666,14.24316104,149.01,148.95,41.90795104]
[1641480633066,14.24316104,149.01,148.96,0.75963248]
[1641480633367,14.24316104,149.01,148.96,4.75963248]
[1641480633567,14.24316104,149.01,148.98,4.74748491]
[1641480634167,14.24316104,149.01,148.99,0.75963248]
[1641480634467,14.24316104,149.03,148.99,5.50711739]
[1641480635069,14.24316104,149.03,149.0,0.75963248]
[1641480635270,41.90795104,149.03,149.0,0.75963248]
[1641480635467,14.24316104,149.01,149.0,0.75963248]
[1641480635866,14.24316104,149.01,148.97,4.74748491]
[1641480635867,14.24316104,149.01,148.98,0.75963248]
[1641480636369,3.32937098,149.02,148.98,0.75963248]
[1641480636570,15.36684117,149.02,148.98,0.75963248]
[1641480636774,15.36684117,149.02,149.01,4.0]
[1641480636970,15.36684117,149.02,148.97,4.74748491]
[1641480637171,15.36684117,149.02,148.99,4.0]
[1641480637371,15.36684117,149.02,149.01,4.0]
[1641480637573,14.24016162,149.04,149.0,5.50688487]
[1641480637972,14.24016162,149.04,149.01,0.75939996]
[1641480639475,14.24016162,149.02,149.01,0.75939996]
[1641480640076,14.24016162,149.02,149.0,0.75939996]
[1641480640474,37.92846884,149.06,149.0,0.75939996]
[1641480640675,37.92846884,149.05,149.0,0.75939996]
[1641480641479,27.66479,149.01,148.99,0.75939996]
[1641480641778,27.66479,149.01,148.97,0.75939996]
[1641480642377,27.66479,149.01,148.92,14.24316104]
[1641480642780,14.24478021,148.98,148.91,14.24316104]
[1641480643378,27.66479,148.97,148.91,14.24316104]
[1641480643577,27.66479,148.97,148.96,4.0]
[1641480643776,14.24478021,148.95,148.92,0.75991776]
[1641480644980,17.57415119,148.96,148.93,5.41762788]
[1641480645178,17.57415119,148.96,148.93,1.41762788]
[1641480645579,17.57415119,148.96,148.95,4.0]
[1641480645879,17.57415119,148.96,148.94,0.75991776]
[1641480646179,17.57415119,148.96,148.95,0.75991776]
[1641480646580,17.57415119,148.96,148.95,4.75991776]
[1641480646979,3.32937098,148.96,148.95,4.0]
[1641480647179,3.32937098,148.96,148.93,0.75991776]
[1641480647381,3.32937098,148.96,148.95,0.75991776]
[1641480647579,1e-08,148.96,148.95,8.75991776]
[1641480647779,14.24478021,148.98,148.95,8.0]
[1641480647981,14.24478021,148.99,148.97,8.0]
[1641480648180,8.021e-05,148.99,148.98,8.0]
[1641480648581,8.021e-05,148.99,148.98,8.75991776]
[1641480648781,37.92846884,149.02,148.98,8.75991776]
[1641480648981,37.92846884,149.06,149.0,4.0]
[1641480649181,37.92846884,149.06,148.99,0.75991776]
[1641480649383,37.92846884,149.06,149.01,4.0]
[1641480649981,37.92846884,149.06,148.96,28.42470776]
[1641480649982,37.92846884,149.05,149.0,4.0]
[1641480650182,37.92846884,149.05,149.02,4.75991776]
[1641480650382,37.92846884,149.05,149.02,0.75991776]
[1641480650585,37.92846884,149.05,149.03,0.75991776]
[1641480650982,37.92846884,149.05,149.01,4.75991776]
[1641480651184,37.92846884,149.05,149.01,0.75991776]
[1641480651384,55.32958,149.02,148.9,27.66479]
[1641480651587,55.32958,149.02,148.95,4.0]
[1641480651985,55.32958,149.02,148.96,4.0]
[1641480652586,55.32958,149.02,148.91,37.92282721]
[1641480652587,37.92846884,149.0,148.91,4.0]
[1641480652987,37.92846884,149.0,148.97,0.75985257]
[1641480653188,37.92846884,149.0,148.89,4.0]
[1641480653386,27.66479,148.94,148.89,4.0]
[1641480653587,27.66479,148.94,148.87,10.94661381]
[1641480653787,27.66479,148.94,148.87,6.94661381]
[1641480653987,27.66479,148.94,148.93,4.0]
[1641480654188,37.92846884,148.99,148.93,4.0]
[1641480654388,37.92846884,148.99,148.89,4.0]
[1641480654587,37.92846884,148.99,148.91,4.0]
[1641480654788,37.92846884,148.99,148.88,4.0]
[1641480654989,37.92846884,148.99,148.91,4.0]
[1641480655590,27.66479,148.97,148.9,4.0]
[1641480655792,27.66479,148.97,148.88,4.0]
[1641480656691,27.66479,148.97,148.9,4.0]
[1641480656893,37.92846884,148.95,148.86,66.8518]
[1641480657392,37.92846884,148.95,148.89,4.0]
[1641480657592,27.66479,148.94,148.89,4.0]
[1641480658192,27.66479,148.94,148.93,4.0]
[1641480658394,27.66479,148.94,148.89,4.0]
[1641480658594,27.66479,148.94,148.88,4.0]
[1641480658894,12.0455534,148.93,148.85,6.94969084]
[1641480659092,12.0455534,148.93,148.87,4.0]
[1641480659492,12.0455534,148.93,148.85,6.94969084]
[1641480659493,27.66479,148.89,148.85,6.94969084]
[1641480660295,27.66479,148.89,148.85,9.084e-05]
[1641480660495,20.0,148.88,148.78,60.94149476]
[1641480660795,20.0,148.88,148.82,6.94984912]
[1641480660995,27.66479,148.89,148.78,38.01285484]
[1641480661197,27.66479,148.89,148.78,42.01285484]
[1641480661395,20.0,148.88,148.8,4.0]
[1641480661701,27.66479,148.84,148.8,4.0]
[1641480662296,27.66479,148.84,148.83,4.0]
[1641480662596,27.66479,148.84,148.77,27.66479]
[1641480662996,27.66479,148.84,148.8,4.0]
[1641480663396,27.66479,148.84,148.78,4.0]
[1641480663797,27.66479,148.84,148.77,27.66479]
[1641480664195,27.66479,148.84,148.78,4.0]
[1641480664398,27.66479,148.84,148.69,56.94149476]
[1641480664697,27.66479,148.84,148.78,4.0]
[1641480665199,27.66479,148.84,148.81,4.0]
[1641480665397,27.66479,148.84,148.78,4.0]
[1641480665596,17.14577644,148.87,148.8,27.66479]
[1641480665799,17.14577644,148.87,148.84,4.0]
[1641480666000,17.14577644,148.87,148.85,4.0]
[1641480666204,17.14577644,148.87,148.8,27.66479]
[1641480666401,27.66479,148.9,148.84,4.0]
[1641480666600,5.36768178,149.05,148.8,27.66479]
[1641480666601,20.0,149.07,148.89,4.0]
[1641480666800,20.0,149.07,148.8,27.66479]
[1641480666801,82.2223,149.07,148.94,4.0]
[1641480667000,151.84208286,148.95,148.94,4.0]
[1641480667200,57.02248731,148.95,148.93,4.0]
[1641480667599,57.02248731,148.95,148.93,27.66479]
[1641480667799,57.02248731,148.95,148.93,4.0]
[1641480668000,122.48438555,149.0,148.9,27.66479]
[1641480668200,27.66479,149.0,148.91,4.0]
[1641480668500,27.66479,149.0,148.91,0.76005986]
[1641480668901,27.66479,149.0,148.92,4.0]
[1641480669100,27.66479,149.0,148.91,0.76005986]
[1641480669301,27.66479,149.0,148.93,0.76005986]
[1641480669701,27.66479,149.0,148.91,4.76005986]
[1641480670402,27.66479,149.0,148.92,4.76005986]
[1641480670805,27.66479,149.0,148.93,0.76005986]
[1641480671705,27.66479,149.0,148.94,4.0]
[1641480672105,27.66479,149.0,148.96,4.0]
[1641480672305,27.66479,149.0,148.95,0.76005986]
[1641480672507,27.66479,149.0,148.97,0.76005986]
[1641480672706,27.66479,149.03,148.97,0.76005986]
[1641480672906,27.66479,149.03,149.02,4.0]
[1641480673305,22.05400421,149.06,149.02,4.0]
[1641480673506,22.05400421,149.06,149.03,4.0]
[1641480673706,22.05400421,149.06,149.01,27.66479]
[1641480673908,22.05400421,149.06,149.01,31.66479]
[1641480674109,22.05400421,149.06,149.05,4.0]
[1641480674608,22.05400421,149.11,149.05,4.76005986]
[1641480674808,22.05400421,149.11,149.05,0.76005986]
[1641480675010,22.05400421,149.11,149.09,4.0]
[1641480675212,26.88329443,149.17,149.1,4.0]
[1641480675411,26.88329443,149.17,149.07,4.0]
[1641480675611,22.04067566,149.17,149.16,27.66479]
[1641480675811,94.95093104,149.2,149.16,31.66479]
[1641480676012,94.95093104,149.2,149.16,32.42484986]
[1641480676212,94.95093104,149.2,149.19,4.0]
[1641480676714,94.95093104,149.2,149.17,4.76005986]